[Event "27th CRO-chT 1B-Men 2018"]
[Site "Biograd"]
[Date "2018.09.24"]
[Round "9.23"]
[White "Vrban, Mladen"]
[Black "Ivic, Mateo"]
[Result "1/2-1/2"]
[ECO "E82"]
[WhiteElo "2280"]
[BlackElo "2223"]
[Annotator "ChessBase"]
[PlyCount "60"]
[EventDate "2018.09.15"]
[EventType "team-tourn"]
[EventCountry "CRO"]
[SourceTitle "playchess.com"]
[Source "ChessBase"]
[SourceQuality "1"]
[TimeControl "40/5400+30:1800+30"]

1. c4 {[%emt 0:00:30]} Nf6 {[%emt 0:00:30]} 2. Nc3 {[%emt 0:00:30]} g6 {[%emt 0:00:30]} 3. e4 {[%emt 0:00:00]} d6 {[%emt 0:00:30]} 4. d4 {[%emt 0:01:00]} Bg7 {[%emt 0:00:30]} 5. f3 {[%emt 0:00:30]} O-O {[%emt 0:01:30]} 6. Be3 {[%emt 0:00:00]} b6 {[%emt 0:05:30]} 7. Bd3 {[%emt 0:00:00]} a6 {[%emt 0:02:30]} 8. Nge2 {[%emt 0:01:30]} c5 {[%emt 0:04:30]} 9. e5 {[%emt 0:31:30]} Nfd7 {[%emt 0:03:30]} 10. Be4 {[%emt 0:14:30]} Ra7 {[%emt 0:02:30]} 11. exd6 {[%emt 0:06:30]} exd6 {[%emt 0:00:30]} 12. Qd2 {[%emt 0:04:30]} Nf6 {[%emt 0:08:30]} 13. Bf4 {[%emt 0:25:16]} Rd7 {[%emt 0:12:30]} 14. Ba8 {[%emt 0:03:35]} Bb7 {[%emt 0:04:30]} 15. Bxb7 {[%emt 0:00:08]} Rxb7 {[%emt 0:00:00]} 16. O-O {[%emt 0:03:05]} Nc6 {[%emt 0:02:00]} 17. d5 {[%emt 0:00:41]} Ne5 {[%emt 0:03:30]} 18. Bxe5 {[%emt 0:01:40]} dxe5 {[%emt 0:00:30]} 19. Ng3 {[%emt 0:01:26]} Ne8 {[%emt 0:01:30]} 20. a4 {[%emt 0:01:15]} Nd6 {[%emt 0:00:30]} 21. b3 {[%emt 0:00:09]} f5 {[%emt 0:00:30]} 22. Rad1 {[%emt 0:00:58]} Qh4 {[%emt 0:02:30]} 23. Nge2 {[%emt 0:00:58]} Bh6 {[%emt 0:03:30]} 24. Qe1 {[%emt 0:00:16]} Be3+ {[%emt 0:00:30]} 25. Kh1 {[%emt 0:00:01]} Qh6 {[%emt 0:00:30]} 26. Ng1 {[%emt 0:00:58]} Re8 {[%emt 0:03:30]} 27. Rd3 {[%emt 0:00:33]} Bd4 {[%emt 0:00:30]} 28. Nce2 {[%emt 0:00:20]} Rbe7 {[%emt 0:01:30]} 29. Qg3 {[%emt 0:00:35]} f4 {[%emt 0:10:30]} 30. Qh3 {[%emt 0:00:27]} Qg5 {[%emt 0:00:30]} 1/2-1/2

[Event "27th CRO-chT 1B-Men 2018"]
[Site "Biograd"]
[Date "2018.09.24"]
[Round "9.24"]
[White "Susak, Zeljko"]
[Black "Matijevic, Hrvoje"]
[Result "1/2-1/2"]
[ECO "C41"]
[WhiteElo "2200"]
[BlackElo "2228"]
[Annotator "ChessBase"]
[PlyCount "39"]
[EventDate "2018.09.15"]
[EventType "team-tourn"]
[EventCountry "CRO"]
[SourceTitle "playchess.com"]
[Source "ChessBase"]
[SourceQuality "1"]
[TimeControl "40/5400+30:1800+30"]

1. e4 {[%emt 0:00:30]} d6 {[%emt 0:03:30]} 2. d4 {[%emt 0:00:30]} Nf6 {[%emt 0:00:30]} 3. Nc3 {[%emt 0:00:30]} e5 {[%emt 0:00:00]} 4. Nf3 {[%emt 0:00:30]} Nbd7 {[%emt 0:00:00]} 5. Bc4 {[%emt 0:02:30]} Be7 {[%emt 0:02:30]} 6. O-O {[%emt 0:00:30]} O-O {[%emt 0:00:00]} 7. Re1 {[%emt 0:05:30]} c6 {[%emt 0:03:00]} 8. a4 {[%emt 0:01:30]} a5 {[%emt 0:00:00]} 9. Ba2 {[%emt 0:00:30]} exd4 {[%emt 0:17:00]} 10. Nxd4 {[%emt 0:03:30]} Nc5 {[%emt 0:06:30]} 11. h3 {[%emt 0:04:30]} Qb6 {[%emt 0:02:30]} 12. Nb3 {[%emt 0:25:30]} Nxb3 {[%emt 0:11:30]} 13. Bxb3 {[%emt 0:00:30]} Be6 {[%emt 0:00:30]} 14. Be3 {[%emt 0:06:30]} Qc7 {[%emt 0:05:30]} 15. Rc1 {[%emt 0:10:30]} Rad8 {[%emt 0:14:30]} 16. Qf3 {[%emt 0:14:49]} Bxb3 {[%emt 0:09:30]} 17. cxb3 {[%emt 0:00:30]} Qd7 {[%emt 0:00:30]} 18. Bb6 {[%emt 0:02:06]} Ra8 {[%emt 0:00:30]} 19. e5 {[%emt 0:04:04]} dxe5 {[%emt 0:07:19]} 20. Rxe5 {[%emt 0:00:00]} 1/2-1/2

[Event "27th CRO-chT 1B-Men 2018"]
[Site "Biograd"]
[Date "2018.09.24"]
[Round "9.29"]
[White "Rubil, Marko"]
[Black "Brumen, Dinko"]
[Result "1/2-1/2"]
[ECO "B32"]
[WhiteElo "2201"]
[BlackElo "2315"]
[Annotator "ChessBase"]
[PlyCount "42"]
[EventDate "2018.09.15"]
[EventType "team-tourn"]
[EventCountry "CRO"]
[SourceTitle "playchess.com"]
[Source "ChessBase"]
[SourceQuality "1"]
[TimeControl "40/5400+30:1800+30"]

1. e4 {[%emt 0:00:30]} c5 {[%emt 0:00:30]} 2. Nf3 {[%emt 0:00:00]} Nc6 {[%emt 0:00:00]} 3. d4 {[%emt 0:00:00]} cxd4 {[%emt 0:00:00]} 4. Nxd4 {[%emt 0:00:00]} e5 {[%emt 0:00:00]} 5. Nb5 {[%emt 0:00:00]} d6 {[%emt 0:00:00]} 6. c4 {[%emt 0:00:30]} Be7 {[%emt 0:00:30]} 7. N1c3 {[%emt 0:02:30]} a6 {[%emt 0:00:30]} 8. Na3 {[%emt 0:00:00]} Be6 {[%emt 0:00:30]} 9. Nc2 {[%emt 0:00:00]} h6 {[%emt 0:00:00]} 10. Be2 {[%emt 0:01:30]} Rc8 {[%emt 0:01:00]} 11. b3 {[%emt 0:16:30]} Nf6 {[%emt 0:14:30]} 12. O-O {[%emt 0:04:30]} O-O {[%emt 0:00:30]} 13. Bb2 {[%emt 0:07:30]} Qa5 {[%emt 0:15:30]} 14. Qe1 {[%emt 0:13:30]} Bd8 {[%emt 0:18:30]} 15. Rd1 {[%emt 0:02:30]} Nb4 {[%emt 0:10:30]} 16. Ne3 {[%emt 0:02:30]} Nc6 {[%emt 0:13:30]} 17. Ned5 {[%emt 0:13:30]} Bxd5 {[%emt 0:02:30]} 18. exd5 {[%emt 0:00:30]} Nd4 {[%emt 0:00:30]} 19. Bd3 {[%emt 0:00:30]} b5 {[%emt 0:04:58]} 20. Kh1 {[%emt 0:17:55]} bxc4 {[%emt 0:01:14]} 21. bxc4 {[%emt 0:00:01]} Nh5 {[%emt 0:06:16]} 1/2-1/2

[Event "27th CRO-chT 1B-Men 2018"]
[Site "Biograd"]
[Date "2018.09.24"]
[Round "9.30"]
[White "Blazeka, Matej"]
[Black "Matanovic, Luka"]
[Result "1/2-1/2"]
[ECO "D13"]
[WhiteElo "2354"]
[BlackElo "2252"]
[Annotator "ChessBase"]
[PlyCount "48"]
[EventDate "2018.09.15"]
[EventType "team-tourn"]
[EventCountry "CRO"]
[SourceTitle "playchess.com"]
[Source "ChessBase"]
[SourceQuality "1"]
[TimeControl "40/5400+30:1800+30"]

1. d4 {[%emt 0:00:30]} d5 {[%emt 0:02:30]} 2. c4 {[%emt 0:00:00]} c6 {[%emt 0:00:30]} 3. Nc3 {[%emt 0:03:00]} Nf6 {[%emt 0:00:30]} 4. cxd5 {[%emt 0:08:30]} cxd5 {[%emt 0:00:30]} 5. Nf3 {[%emt 0:00:00]} Nc6 {[%emt 0:01:30]} 6. Bf4 {[%emt 0:00:00]} e6 {[%emt 0:01:30]} 7. e3 {[%emt 0:01:30]} a6 {[%emt 0:02:30]} 8. Bd3 {[%emt 0:01:30]} Be7 {[%emt 0:00:30]} 9. h3 {[%emt 0:00:30]} O-O {[%emt 0:01:30]} 10. O-O {[%emt 0:00:30]} Bd7 {[%emt 0:03:30]} 11. Rc1 {[%emt 0:11:30]} Qa5 {[%emt 0:06:30]} 12. a3 {[%emt 0:09:30]} Rfc8 {[%emt 0:02:30]} 13. e4 {[%emt 0:13:30]} dxe4 {[%emt 0:16:30]} 14. Nxe4 {[%emt 0:04:30]} Rd8 {[%emt 0:05:30]} 15. Qb3 {[%emt 0:05:30]} Qd5 {[%emt 0:08:30]} 16. Nxf6+ {[%emt 0:18:19]} Bxf6 {[%emt 0:00:30]} 17. Qxd5 {[%emt 0:00:29]} exd5 {[%emt 0:00:30]} 18. Rfd1 {[%emt 0:00:43]} h6 {[%emt 0:07:30]} 19. Bb1 {[%emt 0:01:38]} g5 {[%emt 0:09:30]} 20. Be5 {[%emt 0:09:41]} Be7 {[%emt 0:10:38]} 21. Ba2 {[%emt 0:01:59]} Be6 {[%emt 0:01:42]} 22. Bc7 {[%emt 0:02:27]} Rd7 {[%emt 0:01:54]} 23. Bb6 {[%emt 0:03:02]} Bf6 {[%emt 0:00:33]} 24. Bb3 {[%emt 0:00:46]} Re7 {[%emt 0:06:16]} 1/2-1/2